Cogmind - Beta 16 @@@ ROGUE MODE // 2025.12.01 @ 14:26:56 Player: lvl5hm Result: Destroyed by QT-GSW(R) with Subdweller Laser Performance ------------- Evolutions (0) 0 Regions Visited (2) 400 Robots Destroyed (24) 120 Value Destroyed (691) 691 Prototype IDs (12) 240 Alien Tech Used (0) 0 Bonus (0) 0 TOTAL SCORE: 1451 Bonus ------- None Cogmind --------- Core Integrity 0/250 Matter 203/300 Energy 200/200 System Corruption 0% Temperature Cool (6) Movement Treading (340) Ox2 Location -10/Subcaves Parts ------- > --- POWER (1) -------- Subdweller Power Source > --- PROPULSION (2) --- Light Treads Spiked Treads > --- UTILITY (2) ------ Huge Storage Unit Seismic Detector > --- WEAPON (2) ------- Subdweller Machine Gun Battle Cannon > --- INVENTORY (25) --- Subdweller Power Source Makeshift Power Source Light Treads Spiked Treads Subdweller Monowheel Subdweller Monowheel High-capacity Matter Pod (153) Subdweller Optics Seismic Detector Makeshift System Restoration Module Power Bank Subdweller Laser Assault Rifle Light Assault Rifle Heavy Assault Rifle Battle Rifle Subdweller Machine Gun Battle Cannon Grenade Launcher Subdweller Shrapnel Launcher Mining Laser Multitool Peak State ------------ > --- POWER ------------ Subdweller Power Source > --- PROPULSION ------- Light Treads Spiked Treads > --- UTILITY ---------- Huge Storage Unit Seismic Detector > --- WEAPON ----------- Heavy Assault Rifle Battle Cannon > --- INVENTORY -------- Subdweller Power Source Makeshift Power Source Light Treads Spiked Treads Subdweller Monowheel Subdweller Monowheel High-capacity Matter Pod Subdweller Optics Seismic Detector Makeshift System Restoration Module Power Bank Assault Rifle Light Assault Rifle Battle Rifle Subdweller Machine Gun Battle Cannon Grenade Launcher Subdweller Shrapnel Launcher Mining Laser Multitool [Rating: 15] Favorites ----------- Power Subdweller Power Source Engine Subdweller Power Source Propulsion Light Treads Treads Light Treads Utility Huge Storage Unit Device Seismic Detector Storage Huge Storage Unit Weapon Assault Rifle Energy Gun Medium Laser Ballistic Gun Assault Rifle Ballistic Cannon Battle Cannon Special Weapon Mining Laser Build | -11 -10 -10 ------- Run | Yrd Mat Sub Slots Evolved . | . . . Power . | . . . Propulsion . | . . . Utility . | . . . Weapon . | . . . Parts Attached 25 | 7 4 14 Power 5 | 1 2 2 Engine 5 | 1 2 2 Core . | . . . Reactor . | . . . Propulsion 5 | 2 . 3 Treads 5 | 2 . 3 Leg . | . . . Wheel . | . . . Hover . | . . . Flight . | . . . Utility 7 | 2 2 3 Device 5 | 1 1 3 Storage 2 | 1 1 . Processor . | . . . Hackware . | . . . Protection . | . . . Artifact . | . . . Weapon 8 | 2 . 6 Energy Gun 1 | . . 1 Energy Cannon . | . . . Ballistic Gun 5 | 2 . 3 Ballistic Cannon 1 | . . 1 Launcher . | . . . Special Weapon 1 | . . 1 Impact Weapon . | . . . Slashing Weapon . | . . . Piercing Weapon . | . . . Special Melee Weapon . | . . . Unidentified Prototypes . | . . . Parts Lost 6 | . . 6 Power 1 | . . 1 Propulsion 2 | . . 2 Utility 1 | . . 1 Weapon 2 | . . 2 Highest Loss Streak 5 | . . 5 To Critical Strikes . | . . . Average Backups 10 | . 4 12 Power 1 | . . 1 Propulsion 2 | . 1 3 Utility 2 | . 1 2 Weapon 4 | . 2 4 Tool/Special . | . . . Unused Backups 15 | . 1 14 Power 1 | . . 1 Propulsion 3 | . . 3 Utility 3 | . . 3 Weapon 7 | . 1 6 Tool/Special 1 | . . 1 Average Slot Usage (%) 98 | . 100 98 Engine 13 | . 14 13 Treads 27 | . 28 27 Device 12 | . 14 12 Storage 14 | . 14 14 Energy Gun 4 | . . 5 Ballistic Gun 17 | . 28 14 Ballistic Cannon 2 | . . 2 Special Weapon 4 | . . 5 Peak Build Rating 15 | 7 7 15 Average Rating 9 | 5 7 10 On Entrance 4 | . 7 7 Avg Prop Armor Cover (%) . | . . . Naked Turns . | . . . Heaviest Build 94 | 15 90 94 Greatest Support 40 | 40 40 40 Greatest Overweight (x) 2 | . 2 2 Average Overweight (x) 1 | . . 2 Largest Inventory Capacity 25 | 8 25 25 Average Capacity 23 | 7 16 25 Most Carried 22 | 2 8 22 Average Carried 10 | . 4 12 Final Capacity 25 | 8 25 25 Final Carried 22 | 2 7 22 Class Distribution -------------------- 83% | Mutant 16% | Scavenger-Mutant Dominant Class ---------------- Mutant | -10/Materials Mutant | -10/Subcaves Resources | -11 -10 -10 ----------- Run | Yrd Mat Sub Matter Collected 1272 | 348 314 610 Remotely . | . . . Salvage Created 1123 | 143 517 463 Parts 52 | 9 17 26 Haulers Intercepted 2 | . 2 . Recyclers Shooed 2 | 1 1 . Parts Field Recycled . | . . . Retrieved Matter . | . . . Parts Self-Destructed 10 | . . 10 Prevented . | . . . Parts Restored . | . . . Kills | -11 -10 -10 ------- Run | Yrd Mat Sub Combat Hostiles Destroyed 16 | . 8 8 Guns 12 | . 8 4 Cannons 4 | . . 4 Classes Destroyed 9 | 2 4 3 Worker 1 | . 1 . Tunneler 3 | 3 . . Hauler 2 | . 2 . Recycler 1 | 1 . . Watcher 1 | . 1 . Grunt 9 | . 8 1 Sentry 1 | . . 1 Cobbler 1 | . . 1 Subdweller 6 | . . 6 Best Kill Streak 3 | 3 2 2 Combat Bots Only 2 | . 2 2 Max Kills in Single Turn 1 | 1 1 1 Gunslinging . | . . . Exploded . | . . . Melee . | . . . Uniques/NPCs Destroyed . | . . . Combat | -11 -10 -10 -------- Run | Yrd Mat Sub Hostile Shots Fired 103 | . 40 63 Missed 26 | . 10 16 Hits 77 | . 30 47 Projectile 77 | . 30 47 Critical Strikes 5 | . 2 3 Damage Taken 1501 | . 479 1022 Core 271 | . 65 206 Absorbed by Shields . | . . . Core Remaining (%) 100 | 100 . . Volleys Fired 144 | 13 46 85 Largest 2 | 2 2 2 Hottest 100 | 40 40 100 Shots Fired 256 | 26 92 138 Gun 209 | 26 92 91 Cannon 26 | . . 26 Launcher . | . . . Special 21 | . . 21 Kinetic 207 | 26 92 89 Thermal 49 | . . 49 Explosive . | . . . Electromagnetic . | . . . Robot Hit Streak 22 | 6 9 22 Robot Miss Streak 4 | 2 4 3 Penetration Max . | . . . Secondary Targets . | . . . Shots Hit Robots 165 | 18 58 89 Core Hits 57 | 5 22 30 Critical Kills . | . . . Critical Parts Destroyed 1 | . 1 . Critical Strikes 7 | . 1 6 Burn 5 | . . 5 Destroy 2 | . 1 1 Melee Attacks . | . . . Impact . | . . . Slashing . | . . . Piercing . | . . . Sneak Attacks . | . . . Combat Hostiles . | . . . Follow-up Attacks . | . . . Damage Inflicted 2318 | 216 756 1346 Guns 1858 | 216 756 886 Cannons 460 | . . 460 Explosions . | . . . Melee . | . . . Ramming . | . . . Kinetic 1991 | 216 756 1019 Thermal 327 | . . 327 Explosive . | . . . Electromagnetic . | . . . Impact . | . . . Slashing . | . . . Piercing . | . . . Highest Corruption . | . . . Average Corruption . | . . . Corruption Purged . | . . . Corruption Blocked . | . . . Overload Shots . | . . . Overflow Damage . | . . . Projectiles . | . . . Explosions . | . . . Melee . | . . . Knockbacks 2 | . . 2 Impact . | . . . Kinetic 2 | . . 2 Secondary . | . . . Self-Inflicted Damage . | . . . Shots . | . . . Rammed . | . . . Targets Rammed . | . . . Kicked . | . . . Crushed . | . . . Highest Temperature 239 | . 21 239 Average Temperature 36 | . 5 121 Received Heat Transfer 771 | . 276 495 Siege Activations . | . . . Martial Activations . | . . . Shielding Activations . | . . . Robots Disrupted . | . . . Combat Hostiles . | . . . Robots Corrupted . | . . . Combat Hostiles . | . . . Parts Fried . | . . . Impact Corruptions . | . . . Robots Melted . | . . . Combat Hostiles . | . . . Parts Melted 1 | . . 1 Heat Transferred 1332 | . . 1332 Parts Sabotaged . | . . . Parts Stolen . | . . . Parts Stripped . | . . . Power Chain Reactions . | . . . Alert | -11 -10 -10 ------- Run | Yrd Mat Sub Maximum Alert Level . | . . . Low Security (%) 100 | 100 100 . Level 1 . | . . . Level 2 . | . . . Level 3 . | . . . Level 4 . | . . . Level 5 . | . . . High Security . | . . . Max Security . | . . . Peak Influence 50 | 10 50 . Initial . | . . . Average 12 | 1 13 . Influence Increases 338 | 20 268 50 Destroy 0b10 Robot/C 200 | . 160 40 Destroy 0b10 Robot/NC 40 | 20 20 . Destroy Leader 66 | . 56 10 Successful Hack 17 | . 17 . Lose Combat Pursuer 15 | . 15 . Influence Decreases 308 | 20 245 43 Entered New Map 12 | . . 12 Time Decay 286 | 20 245 21 Lost Part 10 | . . 10 Squads Dispatched 2 | . 2 . Investigation 2 | . 2 . Extermination . | . . . Reinforcement . | . . . Assault . | . . . Garrison . | . . . Intercept . | . . . Searches Triggered . | . . . Construction Impeded . | . . . Haulers Reinforced . | . . . Active Scanning Responses . | . . . Cargo Convoy Interrupts . | . . . Stealth | -11 -10 -10 --------- Run | Yrd Mat Sub Distress Signals 2 | . 2 . Communications Jammed . | . . . Distress Signals . | . . . Times Spotted 27 | . 14 13 Peak Tracking Total 3 | . 3 2 Tactical Retreats 1 | . 1 . Traps | -11 -10 -10 ------- Run | Yrd Mat Sub Traps Triggered 4 | . 4 . Indirectly . | . . . Trap Hack Attempts . | . . . Triggered . | . . . Disarmed . | . . . Reprogrammed . | . . . Reused . | . . . Traps Extracted . | . . . Installed . | . . . Triggered . | . . . Machines | -11 -10 -10 ---------- Run | Yrd Mat Sub Machines Disabled 1 | . . 1 Max in Single Turn 1 | . . 1 Machines Repaired . | . . . Machines Dismantled . | . . . Machines Sabotaged . | . . . Overloaded Fab Kills . | . . . Hacking | -11 -10 -10 --------- Run | Yrd Mat Sub Machines Accessed 6 | . 4 2 Terminals 4 | . 4 . Fabricators . | . . . Repair Stations . | . . . Recycling Units . | . . . Scanalyzers . | . . . Garrison Access . | . . . Total Hacks 14 | . 9 5 Successful 10 | . 5 5 Failed 4 | . 4 . Catastrophic 1 | . 1 . Database Lockouts . | . . . Manual 9 | . 9 . Terminals 9 | . 9 . Fabricators . | . . . Repair Stations . | . . . Recycling Units . | . . . Scanalyzers . | . . . Garrison Access . | . . . Terminal Hacks 8 | . 3 5 Record 4 | . . 4 Part Schematic 1 | . 1 . Robot Analysis 2 | . 2 . Proto ID Catalog 1 | . . 1 Fabricator Hacks . | . . . Repair Station Hacks . | . . . Recycling Unit Hacks . | . . . Scanalyzer . | . . . Garrison Access Hacks . | . . . Unauthorized Hacks 2 | . 2 . Terminals 2 | . 2 . Botnet 2 | . 2 . Fabricators . | . . . Repair Stations . | . . . Recycling Units . | . . . Scanalyzers . | . . . Garrison Access . | . . . Data Cores Recovered . | . . . Used . | . . . Hacking Detections 4 | . 4 . Full Trace Events . | . . . Feedback Events . | . . . Feedback Blocked . | . . . Robot Schematics Acquired . | . . . Robots Built . | . . . Authchips . | . . . Time . | . . . Total Robot Build Rating . | . . . Part Schematics Acquired 1 | . 1 . Parts Built . | . . . Authchips . | . . . Time . | . . . Total Part Build Rating . | . . . Part Studies Acquired . | . . . Parts Repaired . | . . . Time . | . . . Parts Recycled . | . . . Recycled Matter . | . . . Retrieved Matter . | . . . Retrieved Components . | . . . Parts Scanalyzed . | . . . Part Schematics Acquired . | . . . Parts Damaged . | . . . Bothacking | -11 -10 -10 ------------ Run | Yrd Mat Sub Used RIF Installer . | . . . Robots Hacked . | . . . Non-combat . | . . . Combat . | . . . Robot Hacks Applied . | . . . Relay Couplers Released . | . . . Fabnet Peak Effective % . | . . . Robots Rewired . | . . . Allies Hacked . | . . . Hacks Repelled . | . . . Allies | -11 -10 -10 -------- Run | Yrd Mat Sub Total Allies . | . . . Largest Group . | . . . Highest-Rated Group . | . . . Highest-Rated Ally . | . . . Total Orders . | . . . Ally Attacks . | . . . Total Damage . | . . . Kills . | . . . Allies Corrupted . | . . . Allies Melted . | . . . Intel | -11 -10 -10 ------- Run | Yrd Mat Sub Active Infowar (turns) 5755 | 43 1158 4554 Optics 779 | . . 779 Seismic 4976 | 43 1158 3775 Robot Analysis Total 2 | . 2 . Derelict Logs Recovered 2 | . . 2 Drone Launches . | . . . Drone Recoveries . | . . . Exploration | -11 -10 -10 ------------- Run | Yrd Mat Sub Turns Passed 6321 | 135 1158 5028 Spaces Moved 1894 | 55 431 1408 Core 3 | 3 . . Treads 1891 | 52 431 1408 Legs . | . . . Wheels . | . . . Hover . | . . . Flight . | . . . Fastest Speed 50 | 50 160 320 Average Speed 297 | 154 210 329 Slowest Speed 340 | 160 320 340 Overloaded Moves . | . . . Propulsion Burnouts . | . . . Robots Hopped . | . . . Potential Cave-ins . | . . . Cave-ins Triggered . | . . . Exploration Rate (%) 51 | 7 65 81 Regions Visited 2 Branch Regions 1 Pre-discovered Areas 1 | . . 1 Known Exits Taken . | . . . Unknown Exits Taken 2 | 1 1 . Scrap Searched . | . . . Spaces Dug . | . . . Terrain Destroyed . | . . . Melee . | . . . Projectile . | . . . AOE . | . . . Terrain Rammed . | . . . Walls Destroyed . | . . . Machines Disabled . | . . . Actions | -11 -10 -10 --------- Run | Yrd Mat Sub Total 2271 | 76 594 1601 Wait 167 | . 103 64 Move 1892 | 54 430 1408 Hop . | . . . Pick Up 24 | 2 6 16 Fast Attach 8 | 7 . 1 Attach 5 | . . 5 Detach . | . . . Swap 26 | . 4 22 Drop 5 | . 5 . Fire 144 | 13 46 85 Melee . | . . . Ram . | . . . Kick . | . . . Crush . | . . . Escape Stasis . | . . . Rewire . | . . . Trap . | . . . Miscellaneous . | . . . Route ------- -11/Scrapyard -10/Materials (discovered 3 exits: [*Mat] / [*Min] / *Sub) -10/Subcaves (discovered 1 exit: Rec) History --------- Turn | Location | Event 12 | -11/Scrapyard | Discovered new exit (range 16) 136 | -11/Scrapyard | Entered Materials 308 | -10/Materials | Build established: Mutant 597 | -10/Materials | Discovered new exit (range 5) 821 | -10/Materials | Discovered new exit (range 6) 1256 | -10/Materials | Discovered new exit (range 10) 1294 | -10/Materials | Entered Subcaves 1302 | -10/Subcaves | A swath of the cavern ceiling suddenly collapsed 2089 | -10/Subcaves | A swath of the cavern ceiling suddenly collapsed 2325 | -10/Subcaves | Core integrity fell below 50% 2365 | -10/Subcaves | Shifting Twisted Machinery released Spk. Treads 2367 | -10/Subcaves | Lost 5 parts (1p2n1u1w) 2371 | -10/Subcaves | Shifting Twisted Machinery released Mak. Power Source 3070 | -10/Subcaves | Build established: Scavenger-Mutant 3599 | -10/Subcaves | Build established: Mutant 4485 | -10/Subcaves | Core integrity fell below 20% 4817 | -10/Subcaves | Build established: Scavenger-Mutant 5042 | -10/Subcaves | Visited 4L-MR0's lab 5085 | -10/Subcaves | Found Power Bank 5246 | -10/Subcaves | Shifting Twisted Machinery released Battle Cannon 5262 | -10/Subcaves | Shifting Twisted Machinery released Mak. System Restoration Module 5376 | -10/Subcaves | Build established: Mutant 5460 | -10/Subcaves | Visited Clippyterm 5470 | -10/Subcaves | Identified exit to Recycling 5470 | -10/Subcaves | Learned 40 Factory zone layouts 5851 | -10/Subcaves | Learned location of 1 exit from Materials 6322 | -10/Subcaves | Destroyed by QT-GSW(R) with Subdweller Laser Last Messages --------------- 05744_ Subatomizers dissect the Sub. Power Source. 05758_ Acquired Sub. Laser. 05765_ Subatomizers dissect the Sub. Power Source. 05766_ Acquired 4 matter. 05773_ Acquired 29 matter. 05777_ Subatomizers dissect the Sub. Power Source. 05851_ Acquired derelict log, extracted data. Data stored: Materials exits (x1). 06043_ G-34 Mercenary knocked back. 06046_ G-34 Mercenary destroyed. 06049_ G-47 Trooper destroyed. 06053_ Aluminum Leg fries itself beyond repair. 06056_ Acquired 36 matter. 06062_ Aluminum Leg fries itself beyond repair. 06202_ Acquired 21 matter. 06321_ Sub. Machine Gun shoots sparks and powers down. Map ----- +----------------------------------------------------+ | #?# ### ##???????????????????????????????????? | | ### ### #????????????????????????????????????? | | ## ###??????????????????????????????????? | | # # #??????????????????????????????????? | | #??????????????????????????????????? | | #??????????????????????????????????? | | #??????????????????????????????????? | | #??????????????????????????????????? | | #### ##??????????????????????????????????? | | ???#### ##???????????????????????????????????? | | ??????## #????????????????????????????????????? | | ???????## #????????????????????????????????????? | | ????????#####????????????????????????????????????? | | ?????????????????????????????????????????????????? | | ?????????????????????????????????????????????????? | | #?? ????????????????????????????????????????????? | | ## #???????????????????????????????????????????? | | #????????????????????????????????????????????? | | #?????????????????????????????????????????????? | | #??? ????????????####?????????????????????????? | | ##?## ??????????## #?????????????????????????? | | #??# ?????????# ##?????????#??????????????? | | ????? ????????## ####???# ##?????????????? | | ?????? ???????# ## " #?????????????? | | ??????? ???##### "" #????????????? | | ???????# ??## ## @ R% #???????????? | | ??????## %?## #### R "?????????? | | ??????# ## ###??# #????????? | | ???????# # #???? ### % ## ?????????? | | #???## # #???? ##??? ###?????????????? | | #???# #???? #?????????????????????? | | #??## #####????# ##?????????????????????? | | ### #????????## ??????????????????????? | | #??????????#??????????????????????? | | ####??????????????????????????????? | | ##### ##?????????????????????????????? | | ????## ##????????????????????????????? | | ????# #### ###???????????????????#""""??? | | ????## %??# #?????????????????##""""""?? | | ????# & ?# ## #????????????????? ""# | | ???## ### ## #????????????????? ? | | ### # ### #?????????????????? ?? | | #### ##?????????????????? ??? | | #?####??????????????????? ???? | | ########## ##???????????????????????? #???? | | ?????????### #????????????????????????# #???? | | ???????????## ##???????????>????????????# #????? | | ???????????# ##??????????????######???## #????? | | ???????????## ####???????????# ##### ##???? | | ???????????## #??????????## #???? | +----------------------------------------------------+ Best States ------------- Heat Dissipation 35 Energy Generation 10 Energy Capacity 250 Matter Stores 300 Matter Capacity 300 Sight Range 21 Terrain Scan Density 10 Evasion (%) 40 Recoil Reduction 2 Item Schematics ----------------- Assault Rifle | -10/Materials | Hacked Robot Schematics ------------------ None Fabricated ------------ Nothing Repaired ---------- Nothing Studied --------- None Alien Tech Used ----------------- None Achievements -------------- None Challenges ------------ None Game ------ Seed BladeChargeLaser Manual? 0 Play Time 00:21:42 Cumulative 253.6 hours Start 2025.12.01 @ 14:09:43 End 2025.12.01 @ 14:26:56 Sessions 1 Manual Loads 0 Difficulty Rogue Special Mode None Game No. 190 Rogue 190 Adventurer 0 Explorer 0 Win Type - Total 11 Types 6/0/2/1/0/0/0/1/0/1 Lore% 67 Gallery% 74 Achievement% 67 Wizard Run 0 Options --------- Layout 2 ASCII 0 Keyboard 1 Movement Arrows Keybinds 0 Fullscreen 1 Font 32/Tamsyn Map View 50x44 Zoom Use 0% Tactical HUD 1 Map Filters NONE Filters NONE Steam 1 RUN: b457f518-99b5-47da-bc85-f24ff223634d